[Event "EYCC Open-U10 2019"]
[Site "Bratislava"]
[Date "2019.08.09"]
[Round "8.36"]
[White "Grabs, Peter"]
[Black "Kozlovic, Jernej"]
[Result "1/2-1/2"]
[ECO "C68"]
[WhiteElo "1638"]
[BlackElo "1294"]
[Annotator "NA"]
[PlyCount "62"]
[EventDate "2019.08.02"]
[EventType "swiss"]
[EventCountry "SVK"]
[SourceTitle "playchess.com"]
[Source "ChessBase"]
[SourceQuality "1"]
[TimeControl "40/5400+30:1800+30"]

1. e4 {[%emt 0:00:00]} e5 {[%emt 0:00:00]} 2. Nf3 {[%emt 0:00:00]} Nc6 {[%emt 0:00:00]} 3. Bb5 {[%emt 0:00:00]} a6 {[%emt 0:00:00]} 4. Bxc6 {[%emt 0:00:00]} dxc6 {[%emt 0:00:08]} 5. d4 {[%emt 0:00:00]} exd4 {[%emt 0:01:06]} 6. Qxd4 {[%emt 0:00:03]} Qxd4 {[%emt 0:00:48]} 7. Nxd4 {[%emt 0:00:04]} Bd7 {[%emt 0:05:56]} 8. Be3 {[%emt 0:11:39]} Nf6 {[%emt 0:03:21]} 9. f3 {[%emt 0:02:48]} O-O-O {[%emt 0:02:08]} 10. Nd2 {[%emt 0:03:03]} Bc5 {[%emt 0:08:27]} 11. c3 {[%emt 0:01:30]} Rhe8 {[%emt 0:03:23]} 12. O-O-O {[%emt 0:07:29]} Bb6 {[%emt 0:12:07]} 13. Nc4 {[%emt 0:11:16]} c5 {[%emt 0:17:47]} 14. Nxb6+ {[%emt 0:10:12]} cxb6 {[%emt 0:00:17]} 15. Nc2 {[%emt 0:00:20]} Be6 {[%emt 0:07:25]} 16. a3 {[%emt 0:10:20]} Bb3 {[%emt 0:03:52]} 17. Rxd8+ {[%emt 0:02:42]} Rxd8 {[%emt 0:00:09]} 18. Rd1 {[%emt 0:00:31]} Rxd1+ {[%emt 0:03:49]} 19. Kxd1 {[%emt 0:00:05]} Kd7 {[%emt 0:03:10]} 20. Kd2 {[%emt 0:01:45]} Ke6 {[%emt 0:05:05]} 21. Ne1 {[%emt 0:14:54]} Nd7 {[%emt 0:04:50]} 22. Nd3 {[%emt 0:10:06]} Ne5 {[%emt 0:05:17]} 23. Nxe5 {[%emt 0:00:14]} Kxe5 {[%emt 0:00:19]} 24. Kd3 {[%emt 0:00:00]} f6 {[%emt 0:04:01]} 25. f4+ {[%emt 0:03:13]} Ke6 {[%emt 0:01:09]} 26. g3 {[%emt 0:00:59]} Ba2 {[%emt 0:01:47]} 27. Kc2 Bc4 28. b3 {[%emt 0:03:54]} Bf1 29. Kd2 Bg2 30. e5 fxe5 31. fxe5 Kxe5 1/2-1/2

[Event "EYCC Open-U10 2019"]
[Site "Bratislava"]
[Date "2019.08.09"]
[Round "8.37"]
[White "Oglaza, Dawid"]
[Black "Sauer, Tim"]
[Result "0-1"]
[ECO "B15"]
[WhiteElo "1284"]
[BlackElo "1635"]
[Annotator "NA"]
[PlyCount "120"]
[EventDate "2019.08.02"]
[EventType "swiss"]
[EventCountry "SVK"]
[SourceTitle "playchess.com"]
[Source "ChessBase"]
[SourceQuality "1"]
[TimeControl "40/5400+30:1800+30"]

1. e4 {[%emt 0:00:01]} c6 {[%emt 0:00:00]} 2. d4 {[%emt 0:00:19]} d5 {[%emt 0:00:00]} 3. Nc3 {[%emt 0:00:21]} dxe4 {[%emt 0:00:00]} 4. Nxe4 {[%emt 0:00:14]} Nf6 {[%emt 0:00:00]} 5. Nxf6+ {[%emt 0:00:22]} exf6 {[%emt 0:00:11]} 6. Qe2+ {[%emt 0:01:01]} Be7 {[%emt 0:00:33]} 7. Nf3 {[%emt 0:00:41]} O-O {[%emt 0:00:13]} 8. Be3 {[%emt 0:02:12]} Be6 {[%emt 0:01:14]} 9. g3 {[%emt 0:01:04]} Nd7 {[%emt 0:02:53]} 10. Bg2 {[%emt 0:02:09]} Nb6 {[%emt 0:01:09]} 11. c3 {[%emt 0:07:40]} Nc4 {[%emt 0:03:39]} 12. b3 {[%emt 0:02:35]} Nxe3 {[%emt 0:01:19]} 13. fxe3 {[%emt 0:00:25]} Qa5 {[%emt 0:00:44]} 14. Qc2 {[%emt 0:01:37]} c5 {[%emt 0:06:31]} 15. O-O {[%emt 0:00:43]} Rac8 {[%emt 0:04:24]} 16. c4 cxd4 {[%emt 0:00:52]} 17. exd4 {[%emt 0:02:39]} Rfd8 {[%emt 0:08:11]} 18. Qe2 {[%emt 0:02:21]} Bb4 {[%emt 0:01:53]} 19. d5 {[%emt 0:01:39]} Bg4 {[%emt 0:00:39]} 20. Kh1 {[%emt 0:03:56]} Re8 {[%emt 0:01:27]} 21. Qd3 {[%emt 0:01:39]} Bh5 {[%emt 0:03:10]} 22. a3 {[%emt 0:03:45]} Bg6 {[%emt 0:06:46]} 23. Qd1 {[%emt 0:04:58]} Bc3 {[%emt 0:00:41]} 24. Ra2 {[%emt 0:01:32]} Qc5 {[%emt 0:04:33]} 25. Qc1 {[%emt 0:14:51]} Qe3 {[%emt 0:07:51]} 26. Qxe3 {[%emt 0:00:36]} Rxe3 {[%emt 0:00:04]} 27. Nh4 {[%emt 0:03:22]} b6 {[%emt 0:05:40]} 28. Nxg6 {[%emt 0:00:27]} fxg6 {[%emt 0:01:58]} 29. Rd1 {[%emt 0:03:38]} Rce8 {[%emt 0:02:46]} 30. Kg1 {[%emt 0:02:06]} a5 {[%emt 0:03:07]} 31. d6 {[%emt 0:03:35]} Re1+ {[%emt 0:11:17]} 32. Rxe1 {[%emt 0:00:09]} Rxe1+ {[%emt 0:00:02]} 33. Kf2 {[%emt 0:00:22]} Rd1 {[%emt 0:02:36]} 34. Bd5+ {[%emt 0:00:17]} Kf8 {[%emt 0:00:23]} 35. Re2 {[%emt 0:00:59]} Be5 {[%emt 0:05:20]} 36. d7 {[%emt 0:01:12]} Ke7 {[%emt 0:01:40]} 37. Bc6 {[%emt 0:00:32]} Kd8 {[%emt 0:01:52]} 38. Bb5 {[%emt 0:05:47]} g5 {[%emt 0:03:21]} 39. Kg2 {[%emt 0:00:54]} g4 {[%emt 0:01:21]} 40. b4 {[%emt 0:00:00]} Kc7 {[%emt 0:00:00]} 41. Ba4 {[%emt 0:09:34]} Rd3 {[%emt 0:09:40]} 42. bxa5 {[%emt 0:01:27]} bxa5 {[%emt 0:00:57]} 43. Ra2 {[%emt 0:02:41]} h5 {[%emt 0:09:07]} 44. c5 {[%emt 0:02:50]} g5 {[%emt 0:02:41]} 45. c6 {[%emt 0:03:18]} h4 {[%emt 0:01:31]} 46. gxh4 {[%emt 0:00:47]} gxh4 {[%emt 0:00:22]} 47. Kg1 {[%emt 0:09:09]} Rd4 {[%emt 0:10:09]} 48. Bb3 {[%emt 0:01:35]} a4 {[%emt 0:06:14]} 49. Be6 {[%emt 0:00:50]} Rd1+ {[%emt 0:02:16]} 50. Kf2 {[%emt 0:00:49]} Rh1 {[%emt 0:01:00]} 51. Rd2 {[%emt 0:01:53]} Rxh2+ {[%emt 0:00:24]} 52. Ke1 {[%emt 0:00:48]} Rxd2 {[%emt 0:00:42]} 53. Kxd2 {[%emt 0:00:14]} g3 {[%emt 0:00:20]} 54. Bh3 {[%emt 0:00:16]} Bd6 {[%emt 0:00:27]} 55. Kc2 {[%emt 0:00:49]} Bxa3 {[%emt 0:00:18]} 56. Bg2 {[%emt 0:02:16]} Be7 {[%emt 0:00:27]} 57. Kd2 {[%emt 0:01:50]} a3 {[%emt 0:00:27]} 58. Kc2 {[%emt 0:00:24]} f5 {[%emt 0:00:24]} 59. Bd5 {[%emt 0:01:17]} h3 {[%emt 0:00:16]} 60. Kd2 {[%emt 0:00:19]} g2 {[%emt 0:00:06]} 0-1

[Event "EYCC Open-U10 2019"]
[Site "Bratislava"]
[Date "2019.08.09"]
[Round "8.38"]
[White "Papaioannou, Dimitrios"]
[Black "Tushishvili, Tamaz"]
[Result "1-0"]
[ECO "B63"]
[WhiteElo "1629"]
[BlackElo "1323"]
[Annotator "NA"]
[PlyCount "109"]
[EventDate "2019.08.02"]
[EventType "swiss"]
[EventCountry "SVK"]
[SourceTitle "playchess.com"]
[Source "ChessBase"]
[SourceQuality "1"]
[TimeControl "40/5400+30:1800+30"]

1. e4 {[%emt 0:00:00]} c5 {[%emt 0:00:00]} 2. Nf3 {[%emt 0:00:00]} Nc6 {[%emt 0:00:00]} 3. d4 {[%emt 0:00:00]} cxd4 {[%emt 0:00:00]} 4. Nxd4 {[%emt 0:00:00]} Nf6 {[%emt 0:00:00]} 5. Nc3 {[%emt 0:00:00]} d6 {[%emt 0:00:00]} 6. Bg5 {[%emt 0:00:00]} e6 {[%emt 0:00:05]} 7. Qd2 {[%emt 0:00:00]} Be7 {[%emt 0:00:16]} 8. O-O-O {[%emt 0:00:02]} a6 {[%emt 0:01:03]} 9. Nxc6 {[%emt 0:00:12]} bxc6 {[%emt 0:00:07]} 10. Bxf6 {[%emt 0:00:11]} gxf6 {[%emt 0:00:24]} 11. Bc4 {[%emt 0:00:14]} d5 {[%emt 0:02:54]} 12. Bb3 {[%emt 0:00:27]} Bb7 {[%emt 0:10:23]} 13. Rhe1 {[%emt 0:04:15]} Qc7 {[%emt 0:01:54]} 14. Qe2 {[%emt 0:03:13]} Rd8 {[%emt 0:08:02]} 15. exd5 {[%emt 0:02:07]} cxd5 {[%emt 0:00:16]} 16. g3 {[%emt 0:01:54]} f5 {[%emt 0:02:38]} 17. f4 {[%emt 0:00:13]} d4 {[%emt 0:02:15]} 18. Ba4+ {[%emt 0:01:08]} Kf8 {[%emt 0:00:28]} 19. Nb1 {[%emt 0:01:14]} Bf6 {[%emt 0:02:54]} 20. Na3 {[%emt 0:01:27]} Rc8 {[%emt 0:02:10]} 21. Bb3 {[%emt 0:02:30]} Kg7 {[%emt 0:02:31]} 22. Kb1 {[%emt 0:01:51]} Rhd8 {[%emt 0:01:18]} 23. Rg1 {[%emt 0:01:46]} Be4 {[%emt 0:08:33]} 24. Qxa6 {[%emt 0:02:29]} Rd6 {[%emt 0:04:18]} 25. Qe2 {[%emt 0:02:19]} Rb8 {[%emt 0:04:01]} 26. Nb5 {[%emt 0:02:18]} Bf3 {[%emt 0:00:28]} 27. Qxf3 {[%emt 0:01:19]} Rxb5 {[%emt 0:00:12]} 28. g4 {[%emt 0:02:16]} Kh8 {[%emt 0:01:08]} 29. gxf5 Rxf5 30. Rg4 {[%emt 0:03:13]} Rd8 {[%emt 0:04:52]} 31. Rf1 {[%emt 0:03:42]} Be5 {[%emt 0:03:48]} 32. Qg3 {[%emt 0:03:51]} Qb8 {[%emt 0:10:11]} 33. Rg1 {[%emt 0:01:19]} Bxf4 {[%emt 0:03:14]} 34. Rxf4 {[%emt 0:00:27]} Qe5 {[%emt 0:04:52]} 35. Rxf5 {[%emt 0:00:25]} Qxg3 {[%emt 0:00:30]} 36. hxg3 {[%emt 0:00:10]} exf5 {[%emt 0:00:01]} 37. Bxf7 {[%emt 0:00:16]} Kg7 {[%emt 0:00:35]} 38. Bb3 {[%emt 0:00:08]} Kf6 {[%emt 0:00:08]} 39. a4 {[%emt 0:00:13]} Rd7 {[%emt 0:00:14]} 40. Kc1 {[%emt 0:00:00]} Rg7 {[%emt 0:00:00]} 41. Kd2 {[%emt 0:00:36]} f4 {[%emt 0:00:15]} 42. Rf1 {[%emt 0:00:25]} Rxg3 {[%emt 0:00:09]} 43. Rxf4+ {[%emt 0:00:13]} Ke5 {[%emt 0:00:02]} 44. Rf2 {[%emt 0:00:15]} h5 {[%emt 0:00:11]} 45. Rh2 {[%emt 0:00:08]} Rg5 {[%emt 0:00:07]} 46. Bf7 {[%emt 0:00:19]} h4 {[%emt 0:00:12]} 47. Rxh4 {[%emt 0:00:13]} Rg2+ {[%emt 0:00:07]} 48. Kd3 {[%emt 0:00:13]} Rg3+ {[%emt 0:00:11]} 49. Kc4 {[%emt 0:00:16]} Rg2 {[%emt 0:00:06]} 50. Kb3 {[%emt 0:00:18]} Rg3+ {[%emt 0:00:06]} 51. c3 {[%emt 0:00:17]} d3 {[%emt 0:00:08]} 52. Rd4 {[%emt 0:00:08]} Rg7 {[%emt 0:00:34]} 53. Bc4 {[%emt 0:00:16]} Rb7+ {[%emt 0:00:06]} 54. Bb5 {[%emt 0:00:15]} d2 {[%emt 0:00:09]} 55. Rxd2 {[%emt 0:00:07]} 1-0

[Event "EYCC Open-U10 2019"]
[Site "Bratislava"]
[Date "2019.08.09"]
[Round "8.39"]
[White "Koblov, Egor"]
[Black "La Barbera, Manfredi"]
[Result "1-0"]
[ECO "C06"]
[WhiteElo "1312"]
[BlackElo "1479"]
[Annotator "NA"]
[PlyCount "83"]
[EventDate "2019.08.02"]
[EventType "swiss"]
[EventCountry "SVK"]
[SourceTitle "playchess.com"]
[Source "ChessBase"]
[SourceQuality "1"]
[TimeControl "40/5400+30:1800+30"]

1. e4 {[%emt 0:00:00]} e6 {[%emt 0:00:00]} 2. d4 {[%emt 0:00:00]} d5 {[%emt 0:00:00]} 3. Nd2 {[%emt 0:00:00]} Nf6 {[%emt 0:00:00]} 4. e5 {[%emt 0:00:00]} Nfd7 {[%emt 0:00:00]} 5. Bd3 {[%emt 0:00:00]} c5 {[%emt 0:00:21]} 6. c3 {[%emt 0:00:00]} Nc6 {[%emt 0:00:04]} 7. Ne2 {[%emt 0:00:00]} cxd4 {[%emt 0:00:13]} 8. cxd4 {[%emt 0:00:04]} f6 {[%emt 0:00:07]} 9. exf6 {[%emt 0:00:04]} Nxf6 {[%emt 0:00:05]} 10. Nf3 {[%emt 0:00:52]} Bd6 {[%emt 0:00:14]} 11. O-O {[%emt 0:00:05]} O-O {[%emt 0:00:05]} 12. Bf4 {[%emt 0:00:10]} Qc7 {[%emt 0:01:02]} 13. Bxd6 {[%emt 0:00:45]} Qxd6 14. Nc3 {[%emt 0:06:03]} Bd7 {[%emt 0:04:55]} 15. a3 {[%emt 0:08:27]} Rac8 {[%emt 0:01:30]} 16. h3 {[%emt 0:04:37]} Na5 {[%emt 0:12:32]} 17. Ne5 {[%emt 0:03:26]} Nc4 {[%emt 0:02:02]} 18. Qe2 {[%emt 0:00:09]} Na5 {[%emt 0:02:51]} 19. Rad1 {[%emt 0:03:12]} a6 {[%emt 0:04:52]} 20. f4 {[%emt 0:02:38]} Kh8 {[%emt 0:14:15]} 21. Rfe1 {[%emt 0:05:13]} Rce8 {[%emt 0:02:53]} 22. Qf2 {[%emt 0:06:22]} Ng8 {[%emt 0:06:56]} 23. Qh4 {[%emt 0:03:05]} Nh6 {[%emt 0:00:30]} 24. Rf1 {[%emt 0:09:09]} Qe7 {[%emt 0:02:05]} 25. Qh5 {[%emt 0:03:14]} Rd8 {[%emt 0:02:33]} 26. Qg5 {[%emt 0:05:11]} Qf6 {[%emt 0:13:56]} 27. g4 {[%emt 0:12:28]} Be8 {[%emt 0:05:27]} 28. Rde1 {[%emt 0:03:17]} Rd6 {[%emt 0:01:10]} 29. Qxf6 {[%emt 0:12:02]} gxf6 {[%emt 0:00:10]} 30. Nf3 {[%emt 0:00:10]} Nc6 {[%emt 0:01:34]} 31. Rd1 {[%emt 0:02:59]} Bg6 {[%emt 0:00:38]} 32. Bxg6 {[%emt 0:00:34]} hxg6 {[%emt 0:00:14]} 33. Na4 {[%emt 0:00:49]} Nf7 {[%emt 0:04:05]} 34. Nc5 {[%emt 0:00:17]} Nfd8 {[%emt 0:00:08]} 35. Rfe1 {[%emt 0:00:27]} Kg7 {[%emt 0:01:14]} 36. f5 {[%emt 0:02:20]} exf5 {[%emt 0:00:50]} 37. gxf5 {[%emt 0:00:05]} gxf5 {[%emt 0:00:07]} 38. Nh4 {[%emt 0:00:06]} Kf7 {[%emt 0:01:23]} 39. Nxf5 {[%emt 0:00:09]} Rg8+ {[%emt 0:00:21]} 40. Kf2 {[%emt 0:00:00]} Re6 {[%emt 0:00:00]} 41. Nxe6 {[%emt 0:00:26]} Nxe6 {[%emt 0:00:44]} 42. Nh6+ {[%emt 0:00:04]} 1-0

[Event "EYCC Open-U10 2019"]
[Site "Bratislava"]
[Date "2019.08.09"]
[Round "8.40"]
[White "Pereverzev, Timofei"]
[Black "Tolmacevs, Artjoms"]
[Result "1/2-1/2"]
[ECO "B92"]
[WhiteElo "1332"]
[BlackElo "1583"]
[Annotator "NA"]
[PlyCount "131"]
[EventDate "2019.08.02"]
[EventType "swiss"]
[EventCountry "SVK"]
[SourceTitle "playchess.com"]
[Source "ChessBase"]
[SourceQuality "1"]
[TimeControl "40/5400+30:1800+30"]

1. e4 {[%emt 0:00:00]} c5 {[%emt 0:00:00]} 2. Nf3 {[%emt 0:00:00]} d6 {[%emt 0:00:00]} 3. d4 {[%emt 0:00:00]} cxd4 {[%emt 0:00:00]} 4. Nxd4 {[%emt 0:00:15]} Nf6 {[%emt 0:01:39]} 5. Nc3 {[%emt 0:01:31]} a6 {[%emt 0:01:34]} 6. Be2 {[%emt 0:00:10]} e5 {[%emt 0:01:21]} 7. Nb3 {[%emt 0:01:00]} Be7 {[%emt 0:01:47]} 8. Be3 {[%emt 0:02:21]} Be6 {[%emt 0:02:23]} 9. O-O {[%emt 0:00:37]} b6 10. Qd2 {[%emt 0:03:40]} O-O {[%emt 0:02:31]} 11. a4 {[%emt 0:00:23]} Nbd7 {[%emt 0:03:42]} 12. a5 {[%emt 0:03:46]} b5 {[%emt 0:02:09]} 13. f3 {[%emt 0:01:33]} Rc8 {[%emt 0:02:52]} 14. Rfd1 {[%emt 0:02:45]} Qc7 {[%emt 0:04:15]} 15. Nc1 {[%emt 0:10:06]} Nc5 {[%emt 0:04:50]} 16. Nd3 {[%emt 0:03:46]} Nxd3 17. Bxd3 {[%emt 0:00:55]} Qc6 {[%emt 0:06:01]} 18. Rac1 {[%emt 0:07:23]} Rfd8 {[%emt 0:03:15]} 19. Bg5 {[%emt 0:08:21]} h6 {[%emt 0:05:19]} 20. Nd5 {[%emt 0:01:25]} Nxd5 {[%emt 0:09:06]} 21. exd5 {[%emt 0:00:39]} Bxg5 {[%emt 0:00:17]} 22. dxc6 {[%emt 0:08:37]} Bxd2 {[%emt 0:00:08]} 23. Rxd2 {[%emt 0:00:04]} Rxc6 {[%emt 0:00:38]} 24. Be4 {[%emt 0:04:21]} d5 {[%emt 0:01:47]} 25. Rcd1 {[%emt 0:01:43]} Rcd6 {[%emt 0:01:05]} 26. Kf2 {[%emt 0:03:26]} f5 {[%emt 0:02:15]} 27. Bd3 {[%emt 0:00:17]} e4 {[%emt 0:00:45]} 28. Be2 {[%emt 0:00:19]} d4 {[%emt 0:01:23]} 29. Ke1 {[%emt 0:03:17]} e3 {[%emt 0:05:55]} 30. Rd3 {[%emt 0:00:44]} Bc4 {[%emt 0:01:22]} 31. Ra3 {[%emt 0:00:07]} Rg6 {[%emt 0:06:32]} 32. g3 {[%emt 0:00:56]} f4 {[%emt 0:00:30]} 33. g4 {[%emt 0:02:01]} h5 {[%emt 0:00:17]} 34. h3 {[%emt 0:01:43]} hxg4 {[%emt 0:01:09]} 35. Bxc4+ bxc4 {[%emt 0:00:04]} 36. fxg4 {[%emt 0:06:12]} f3 {[%emt 0:00:11]} 37. Rxe3 {[%emt 0:01:42]} dxe3 {[%emt 0:03:53]} 38. Rxd8+ {[%emt 0:00:04]} Kf7 {[%emt 0:00:05]} 39. Rd7+ {[%emt 0:01:39]} Ke8 {[%emt 0:00:18]} 40. Rd5 {[%emt 0:00:00]} f2+ {[%emt 0:00:00]} 41. Ke2 Re6 {[%emt 0:17:39]} 42. g5 {[%emt 0:05:04]} Re4 {[%emt 0:04:36]} 43. Rf5 {[%emt 0:00:49]} Ke7 {[%emt 0:00:34]} 44. g6 {[%emt 0:03:44]} Ke6 {[%emt 0:01:08]} 45. Rf3 {[%emt 0:00:41]} Ke5 {[%emt 0:00:11]} 46. h4 {[%emt 0:10:07]} Kd4 {[%emt 0:15:45]} 47. c3+ {[%emt 0:01:58]} Kc5 {[%emt 0:00:10]} 48. h5 {[%emt 0:01:03]} Re5 {[%emt 0:01:32]} 49. h6 {[%emt 0:00:28]} gxh6 {[%emt 0:00:23]} 50. g7 {[%emt 0:00:06]} Rg5 {[%emt 0:00:06]} 51. Kxe3 {[%emt 0:04:34]} Rxg7 {[%emt 0:00:19]} 52. Rxf2 {[%emt 0:02:02]} Rg6 {[%emt 0:00:08]} 53. Rf5+ {[%emt 0:01:13]} Kc6 {[%emt 0:00:10]} 54. Kf2 {[%emt 0:00:05]} Rd6 {[%emt 0:01:03]} 55. Ke2 {[%emt 0:00:13]} Re6+ {[%emt 0:00:57]} 56. Kf2 {[%emt 0:00:22]} Kd6 {[%emt 0:01:16]} 57. Rh5 {[%emt 0:00:36]} Rf6+ {[%emt 0:01:46]} 58. Ke2 {[%emt 0:00:13]} Kc6 {[%emt 0:02:09]} 59. Ke1 {[%emt 0:01:58]} Kd7 {[%emt 0:03:17]} 60. Rh4 {[%emt 0:02:28]} Re6+ {[%emt 0:00:28]} 61. Kd2 {[%emt 0:01:30]} Rc6 {[%emt 0:01:03]} 62. Kc2 {[%emt 0:04:32]} Kc7 {[%emt 0:00:56]} 63. Kb1 {[%emt 0:00:55]} Rc5 {[%emt 0:00:52]} 64. Rxh6 {[%emt 0:00:35]} Rxa5 {[%emt 0:00:07]} 65. Kc2 {[%emt 0:04:51]} Kb7 {[%emt 0:00:14]} 66. Rh1 1/2-1/2

[Event "EYCC Open-U10 2019"]
[Site "Bratislava"]
[Date "2019.08.09"]
[Round "8.41"]
[White "Ahmadzada, Huseyn"]
[Black "Rabinovich, Yoav"]
[Result "1-0"]
[ECO "A06"]
[WhiteElo "1497"]
[BlackElo "1193"]
[Annotator "NA"]
[PlyCount "99"]
[EventDate "2019.08.02"]
[EventType "swiss"]
[EventCountry "SVK"]
[SourceTitle "playchess.com"]
[Source "ChessBase"]
[SourceQuality "1"]
[TimeControl "40/5400+30:1800+30"]

1. Nf3 {[%emt 0:00:00]} d5 {[%emt 0:00:00]} 2. g3 {[%emt 0:00:00]} Nf6 {[%emt 0:00:00]} 3. Bg2 {[%emt 0:00:00]} Bf5 {[%emt 0:00:12]} 4. d4 {[%emt 0:00:00]} e6 {[%emt 0:00:05]} 5. O-O {[%emt 0:00:00]} Bd6 {[%emt 0:00:12]} 6. c4 {[%emt 0:00:02]} c6 {[%emt 0:06:01]} 7. b3 {[%emt 0:00:34]} Nbd7 {[%emt 0:00:58]} 8. Bb2 {[%emt 0:01:01]} O-O {[%emt 0:02:55]} 9. Nbd2 {[%emt 0:02:55]} Re8 {[%emt 0:08:20]} 10. Re1 {[%emt 0:02:40]} e5 {[%emt 0:03:29]} 11. cxd5 {[%emt 0:04:45]} cxd5 {[%emt 0:00:06]} 12. dxe5 {[%emt 0:00:58]} Nxe5 {[%emt 0:00:21]} 13. Nd4 {[%emt 0:01:38]} Qd7 {[%emt 0:00:47]} 14. Nxf5 {[%emt 0:01:14]} Qxf5 {[%emt 0:00:14]} 15. e4 {[%emt 0:01:41]} Qd7 {[%emt 0:02:59]} 16. Bxe5 {[%emt 0:04:35]} Bxe5 {[%emt 0:00:13]} 17. Rc1 {[%emt 0:00:29]} Rad8 {[%emt 0:02:22]} 18. exd5 {[%emt 0:00:43]} Nxd5 {[%emt 0:16:45]} 19. Nc4 {[%emt 0:07:38]} f6 {[%emt 0:00:49]} 20. f4 {[%emt 0:03:37]} b5 {[%emt 0:00:15]} 21. Na5 {[%emt 0:07:20]} Qd6 {[%emt 0:06:54]} 22. Qxd5+ {[%emt 0:04:27]} Qxd5 {[%emt 0:00:19]} 23. Bxd5+ {[%emt 0:00:03]} Rxd5 {[%emt 0:00:44]} 24. fxe5 {[%emt 0:00:03]} Rdxe5 {[%emt 0:00:03]} 25. Rxe5 {[%emt 0:00:08]} Rxe5 {[%emt 0:00:06]} 26. Rc8+ {[%emt 0:00:09]} Kf7 {[%emt 0:00:03]} 27. Rc7+ {[%emt 0:00:07]} Kg6 {[%emt 0:00:03]} 28. Rxa7 {[%emt 0:00:12]} Re1+ {[%emt 0:00:15]} 29. Kf2 {[%emt 0:00:04]} Rh1 {[%emt 0:00:09]} 30. Kg2 {[%emt 0:00:03]} Ra1 {[%emt 0:00:29]} 31. Nc6 {[%emt 0:00:09]} Rc1 {[%emt 0:00:55]} 32. Nd4 {[%emt 0:00:21]} Rd1 {[%emt 0:00:40]} 33. Nxb5 {[%emt 0:00:05]} Rd2+ {[%emt 0:00:10]} 34. Kh3 {[%emt 0:00:10]} Kh6 {[%emt 0:00:10]} 35. Nc3 {[%emt 0:00:40]} f5 {[%emt 0:00:02]} 36. Ra5 {[%emt 0:01:38]} Rc2 {[%emt 0:00:39]} 37. Nd1 {[%emt 0:00:26]} g6 {[%emt 0:01:04]} 38. Ne3 {[%emt 0:00:48]} Re2 {[%emt 0:00:08]} 39. Nc4 {[%emt 0:01:38]} Rf2 {[%emt 0:00:27]} 40. Nd6 {[%emt 0:00:00]} Kg7 {[%emt 0:00:00]} 41. a4 {[%emt 0:05:11]} h5 {[%emt 0:03:33]} 42. Nxf5+ {[%emt 0:03:25]} gxf5 {[%emt 0:00:06]} 43. Rb5 {[%emt 0:00:28]} Kg6 {[%emt 0:00:11]} 44. a5 {[%emt 0:01:07]} Kg5 {[%emt 0:00:07]} 45. Rb4 {[%emt 0:00:33]} Ra2 {[%emt 0:00:28]} 46. Ra4 {[%emt 0:00:07]} Rb2 {[%emt 0:00:04]} 47. a6 {[%emt 0:00:24]} Rd2 {[%emt 0:00:20]} 48. a7 {[%emt 0:00:05]} Rd8 {[%emt 0:00:07]} 49. a8=Q {[%emt 0:00:06]} Rxa8 {[%emt 0:00:03]} 50. Rxa8 {[%emt 0:00:07]} 1-0

[Event "EYCC Open-U10 2019"]
[Site "Bratislava"]
[Date "2019.08.09"]
[Round "8.42"]
[White "Artissi, Albert"]
[Black "Arora, Abhiraaj"]
[Result "1-0"]
[ECO "D31"]
[WhiteElo "1250"]
[BlackElo "1463"]
[Annotator "NA"]
[PlyCount "119"]
[EventDate "2019.08.02"]
[EventType "swiss"]
[EventCountry "SVK"]
[SourceTitle "playchess.com"]
[Source "ChessBase"]
[SourceQuality "1"]
[TimeControl "40/5400+30:1800+30"]

1. d4 {[%emt 0:00:00]} d5 {[%emt 0:00:00]} 2. c4 {[%emt 0:00:00]} e6 {[%emt 0:00:00]} 3. Nc3 Bb4 4. a3 {[%emt 0:00:17]} Bxc3+ {[%emt 0:01:35]} 5. bxc3 {[%emt 0:00:08]} Nf6 {[%emt 0:01:40]} 6. Bg5 {[%emt 0:00:31]} Nbd7 {[%emt 0:02:02]} 7. cxd5 {[%emt 0:01:03]} exd5 {[%emt 0:00:25]} 8. Nf3 {[%emt 0:00:30]} Nb6 {[%emt 0:04:58]} 9. e3 {[%emt 0:00:36]} Qd6 {[%emt 0:03:55]} 10. Bf4 {[%emt 0:00:59]} Qc6 {[%emt 0:02:41]} 11. Qb3 {[%emt 0:00:28]} a6 {[%emt 0:01:46]} 12. Ne5 {[%emt 0:00:47]} Qa4 {[%emt 0:06:23]} 13. Qxa4+ {[%emt 0:01:11]} Nxa4 {[%emt 0:00:07]} 14. c4 {[%emt 0:00:14]} Nh5 {[%emt 0:02:12]} 15. cxd5 {[%emt 0:00:28]} Nxf4 {[%emt 0:01:41]} 16. exf4 {[%emt 0:00:13]} Nb6 {[%emt 0:01:13]} 17. Rc1 {[%emt 0:00:13]} Nxd5 {[%emt 0:00:34]} 18. Bc4 {[%emt 0:00:48]} c6 {[%emt 0:00:55]} 19. O-O {[%emt 0:02:05]} O-O {[%emt 0:04:01]} 20. Bxd5 {[%emt 0:01:09]} cxd5 {[%emt 0:01:18]} 21. Rc5 {[%emt 0:00:45]} Rd8 {[%emt 0:08:31]} 22. Re1 {[%emt 0:01:04]} Be6 {[%emt 0:02:49]} 23. Rc7 {[%emt 0:00:45]} b5 {[%emt 0:04:25]} 24. f5 {[%emt 0:00:27]} Bxf5 {[%emt 0:02:04]} 25. Nxf7 {[%emt 0:00:27]} Re8 {[%emt 0:02:42]} 26. Ne5 {[%emt 0:01:25]} a5 {[%emt 0:02:15]} 27. Rc5 {[%emt 0:00:37]} b4 {[%emt 0:03:47]} 28. axb4 {[%emt 0:00:27]} axb4 {[%emt 0:00:12]} 29. Rb5 {[%emt 0:00:02]} Rab8 {[%emt 0:01:47]} 30. Rxb8 {[%emt 0:00:15]} Rxb8 {[%emt 0:00:25]} 31. Nc6 {[%emt 0:00:04]} Ra8 {[%emt 0:09:16]} 32. Nxb4 {[%emt 0:02:37]} Be4 {[%emt 0:05:30]} 33. f3 {[%emt 0:01:08]} Ra4 {[%emt 0:01:54]} 34. Nc6 {[%emt 0:01:15]} Bc2 {[%emt 0:07:11]} 35. Rc1 {[%emt 0:01:09]} Bb3 {[%emt 0:01:48]} 36. Rc3 {[%emt 0:00:53]} Bc4 {[%emt 0:01:44]} 37. Ne5 {[%emt 0:00:55]} Kf8 {[%emt 0:05:37]} 38. Nxc4 {[%emt 0:00:21]} Rxc4 {[%emt 0:01:13]} 39. Rxc4 {[%emt 0:00:26]} dxc4 {[%emt 0:00:05]} 40. Kf2 {[%emt 0:00:00]} Ke7 {[%emt 0:00:00]} 41. Ke3 {[%emt 0:00:43]} Kd6 {[%emt 0:01:41]} 42. Kd2 {[%emt 0:00:10]} Kc6 {[%emt 0:00:43]} 43. Kc3 {[%emt 0:01:43]} Kd5 {[%emt 0:00:09]} 44. g3 {[%emt 0:00:20]} h6 {[%emt 0:00:48]} 45. h4 {[%emt 0:01:26]} h5 {[%emt 0:00:28]} 46. g4 {[%emt 0:00:30]} g6 {[%emt 0:00:07]} 47. g5 {[%emt 0:00:24]} Kd6 {[%emt 0:00:26]} 48. Kxc4 {[%emt 0:00:22]} Kc6 {[%emt 0:00:42]} 49. d5+ {[%emt 0:00:17]} Kd6 {[%emt 0:00:06]} 50. Kd4 {[%emt 0:00:21]} Kd7 {[%emt 0:00:09]} 51. Ke5 {[%emt 0:00:15]} Ke7 {[%emt 0:00:11]} 52. d6+ {[%emt 0:00:10]} Kd7 {[%emt 0:00:04]} 53. Kd5 {[%emt 0:00:16]} Kd8 {[%emt 0:00:11]} 54. Ke6 {[%emt 0:00:41]} Ke8 {[%emt 0:00:06]} 55. d7+ {[%emt 0:00:04]} Kd8 {[%emt 0:00:03]} 56. f4 {[%emt 0:00:10]} Kc7 {[%emt 0:00:08]} 57. Ke7 {[%emt 0:00:05]} Kc6 {[%emt 0:00:04]} 58. d8=Q {[%emt 0:00:12]} Kc5 {[%emt 0:00:22]} 59. Qd3 {[%emt 0:00:04]} Kc6 {[%emt 0:00:12]} 60. Qd4 {[%emt 0:00:23]} 1-0